lending/lending_fUSD_20251125
["ID","MTS","AMOUNT","RATE_DAILY","PERIOD"]
[394895816,1764091832868,-500.0,0.00015309,2]
[394895817,1764091832878,-500.0,0.00015309,2]
[394895818,1764091832888,-500.0,0.00015309,2]
[394895819,1764091832898,-500.0,0.00015309,2]
[394895820,1764091832907,-500.0,0.00015309,2]
[394895821,1764091832917,-500.0,0.00015309,2]
[394895822,1764091832934,-500.0,0.00015309,2]
[394895823,1764091832943,-500.0,0.00015309,2]
[394895824,1764091832953,-500.0,0.00015309,2]
[394895825,1764091832963,-500.0,0.00015309,2]
[394895826,1764091832974,-400.0,0.00015309,2]
[394895827,1764091832984,-500.0,0.00015309,2]
[394895828,1764091832993,-500.0,0.00015309,2]
[394895829,1764091833005,-500.0,0.00015309,2]
[394895830,1764091833014,-500.0,0.00015309,2]
[394895831,1764091833024,-500.0,0.00015309,2]
[394895832,1764091833033,-6610.88,0.0001531,2]
[394895833,1764091833043,-9999.99,0.0001531,2]
[394895834,1764091833052,-299.99,0.0001531,2]
[394895835,1764091833062,-150.99,0.0001531,2]
[394895836,1764091833071,-222.57194988,0.00015329,2]
[394895837,1764091833081,-7669.14195142,0.000154,2]
[394895838,1764091833091,-1607.50156,0.0001542,2]
[394895839,1764091833101,-210.04485964,0.00015461,2]
[394895840,1764091833111,-669.01032394,0.000156,2]
[394895841,1764091833121,-471.0,0.00015612,2]
[394895842,1764091833131,-219.0,0.00015641,2]
[394895843,1764091833141,-610.0,0.00015679,2]
[394895844,1764091833152,-999.0,0.00015853,3]
[394895845,1764091833162,-200.0,0.00015891,2]
[394895846,1764091833171,-1239.40229541,0.000159,2]
[394895847,1764091833182,-1239.40229539,0.000159,2]
[394895848,1764091833192,-1239.40229539,0.000159,2]
[394895849,1764091833202,-1239.40229539,0.000159,2]
[394895850,1764091833212,-1239.40229539,0.000159,2]
[394895851,1764091833222,-1239.40229539,0.000159,2]
[394895852,1764091833232,-200.0,0.00015939,2]
[394895853,1764091833241,-500.0,0.00015973,2]
[394895854,1764091833251,-500.0,0.00015999,2]
[394895855,1764091833261,-317.86237381,0.00015999,2]
[394895856,1764091833272,-548.32002916,0.00015999,2]
[394895857,1764091833281,-503.84548151,0.00015999,2]
[394895858,1764091833291,-500.0,0.00015999,2]
[394895859,1764091833301,-500.0,0.00015999,2]
[394895860,1764091833311,-151.0,0.00016,2]
[394895861,1764091833320,-116318.72759715,0.00016,4]
[394895862,1764091833333,-4273.12300425,0.00016,4]
[394895870,1764091838068,-1409.5366343,0.00016,4]
[394895871,1764091838229,-837.37,0.00016,4]
[394895872,1764091838241,-3187.19906549,0.00016,4]
[394895873,1764091838253,-1086.70055045,0.00016,4]
[394895905,1764091840127,-1704.13180317,0.00016,4]
[394895906,1764091840180,-1401.55,0.00016,4]
[394895907,1764091840208,-73582.78386008,0.00016,4]
[394895908,1764091840234,-1212.12124319,0.00016,4]
[394895909,1764091840344,-318.01194199,0.00016,4]
[394895910,1764091840451,-1528.70657414,0.00016,4]
[394895979,1764091844694,-23854.15383791,0.00016,4]
[394895980,1764091844705,-3460.39384945,0.00016022,2]
[394895981,1764091844714,-500.0,0.00016039,2]
[394895982,1764091844724,-1498.57,0.00016039,2]
[394895983,1764091844734,-10052.69,0.00016115,2]
[394895984,1764091844744,-166.59,0.00016141,2]
[394895985,1764091844754,-150.0,0.000162,2]
[394895986,1764091844764,-150.0,0.000162,2]
[394895987,1764091844774,-150.0,0.000162,2]
[394895988,1764091844783,-150.0,0.000162,2]
[394895989,1764091844793,-150.0,0.000162,2]
[394895990,1764091844803,-150.0,0.000162,2]
[394895991,1764091844813,-150.0,0.000162,2]
[394895992,1764091844822,-150.62669073,0.000162,2]
[394895993,1764091844831,-150.0,0.000162,2]
[394895994,1764091844841,-150.0,0.000162,2]
[394895995,1764091844850,-150.0,0.000162,2]
[394895996,1764091844860,-150.0,0.000162,2]
[394895997,1764091844870,-12507.21,0.00016295,2]
[394895998,1764091844879,-378.0,0.00016416,2]
[394895999,1764091844889,-195.0,0.00016417,2]
[394896000,1764091844899,-233.5097471,0.00016417,2]
[394896001,1764091844909,-172.4986946,0.00016417,2]
[394896002,1764091844919,-195.0,0.00016417,2]
[394896003,1764091844933,-300.0,0.00016417,2]
[394896004,1764091844942,-250.0,0.00016417,2]
[394896005,1764091844951,-1607.50157,0.0001642,2]
[394896006,1764091844961,-415.38102528,0.00016438,2]
[394896007,1764091844974,-578.20924308,0.00016464,2]
[394896008,1764091844984,-666.0,0.00016464,2]
[394896009,1764091844994,-614.27776217,0.00016464,2]
[394896010,1764091845006,-500.0,0.00016464,2]
[394896011,1764091845016,-500.0,0.00016464,2]
[394896012,1764091845025,-500.0,0.00016464,2]
[394896013,1764091845035,-500.0,0.00016464,2]
[394896014,1764091845044,-488.3323414,0.00016464,2]
[394896015,1764091845054,-500.0,0.00016464,2]
[394896016,1764091845063,-500.0,0.00016464,2]
[394896017,1764091845072,-500.0,0.00016464,2]
[394896018,1764091845082,-500.0,0.00016464,2]
[394896019,1764091845091,-500.0,0.00016464,2]
[394896020,1764091845101,-1680.0,0.00016499,2]
[394896021,1764091845110,-666.0,0.00016519,2]
[394896022,1764091845120,-1005.59689744,0.00016521,2]
[394896023,1764091845130,-195.0,0.00016542,2]
[394896024,1764091845139,-300.0,0.00016542,2]
[394896025,1764091845148,-666.0,0.00016574,2]
[394896026,1764091845158,-250.0,0.00016595,2]
[394896027,1764091845167,-666.0,0.00016629,2]
[394896028,1764091845177,-170.0,0.00017,2]
[394896029,1764091845186,-2000.0,0.00017,2]
[394896030,1764091845196,-150.0,0.000171,2]
[394896031,1764091845206,-150.0,0.000171,2]
[394896032,1764091845215,-150.0,0.000171,2]
[394896033,1764091845225,-150.0,0.000171,2]
[394896034,1764091845234,-150.0,0.000171,2]
[394896035,1764091845244,-150.0,0.000171,2]
[394896036,1764091845253,-1437.6549029,0.00017162,2]
[394896037,1764091845263,-1600.0,0.00017201,2]
[394896038,1764091845273,-245.28,0.00017217,2]
[394896039,1764091845283,-200.0,0.0001736,2]
[394896040,1764091845292,-1607.50157,0.0001742,2]
[394896041,1764091845301,-166.59,0.00017473,2]
[394896042,1764091845311,-230.0,0.00017473,2]
[394896043,1764091845321,-9467.16123157,0.00017504,2]
[394896044,1764091845337,-925.9169098,0.00017504,2]
[394896045,1764091845349,-2606.64498645,0.00017504,2]
[394896046,1764091845359,-361.0,0.00017546,2]
[394896047,1764091845368,-361.0,0.00017547,2]
[394896048,1764091845378,-361.0,0.0001757,2]
[394896049,1764091845387,-320.7841687,0.00017593,2]
[394896050,1764091845397,-1000.0,0.000176,2]
[394896051,1764091845406,-1957.0,0.000176,2]
[394896052,1764091845417,-1239.0,0.000176,2]
[394896053,1764091845427,-361.0,0.00017606,2]
[394896054,1764091845437,-361.0,0.00017615,2]
[394896055,1764091845447,-1085.309,0.0001764,2]
[394896056,1764091845456,-361.0,0.00017651,2]
[394896057,1764091845465,-361.0,0.00017652,2]
[394896058,1764091845475,-1550.0,0.000177,2]
[394896059,1764091845485,-1000.0,0.000177,2]
[394896060,1764091845494,-361.0,0.00017737,2]
[394896061,1764091845504,-361.0,0.00017768,2]
[394896062,1764091845514,-361.0,0.00017872,2]
[394896063,1764091845528,-361.0,0.00017892,2]
[394896064,1764091845537,-18107.6762,0.000179,2]
[394896065,1764091845547,-1000.0,0.000179,2]
[394896066,1764091845557,-1030.70881818,0.000179,2]
[394896067,1764091845567,-184.2569763,0.000179,2]
[394896068,1764091845577,-361.0,0.00017931,2]
[394896069,1764091845586,-361.0,0.00017932,2]
[394896070,1764091845595,-361.0,0.00017941,2]
[394896071,1764091845605,-150.0,0.00017945,2]
[394896072,1764091845616,-150.0,0.00017945,2]
[394896073,1764091845626,-150.0,0.00017945,2]
[394896074,1764091845635,-150.0,0.00017945,2]
[394896075,1764091845645,-203.97373392,0.00017945,2]
[394896076,1764091845654,-150.0,0.00017945,2]
[394896077,1764091845664,-150.0,0.00017945,2]
[394896078,1764091845673,-500.0,0.00017945,2]
[394896079,1764091845683,-150.0,0.00017945,2]
[394896080,1764091845693,-150.0,0.00017945,2]
[394896081,1764091845703,-154.47334927,0.00017945,2]
[394896082,1764091845714,-152.77170243,0.00017945,2]
[394896083,1764091845727,-227.15215153,0.00017945,2]
[394896084,1764091845737,-361.0,0.00017974,2]
[394896085,1764091845746,-361.0,0.00017979,2]
[394896086,1764091845756,-361.0,0.00017988,2]
[394896087,1764091845766,-3185.0,0.00018,2]
[394896088,1764091845775,-150.0,0.00018,2]
[394896089,1764091845785,-150.0,0.00018,2]
[394896090,1764091845794,-150.0,0.00018,2]
[394896091,1764091845804,-150.0,0.00018,2]
[394896092,1764091845813,-150.0,0.00018,2]
[394896093,1764091845823,-150.0,0.00018,2]
[394896094,1764091845833,-150.0,0.00018,2]
[394896100,1764091846053,-15.73605865,0.00018,2]
[394896103,1764091846076,-134.26394135,0.00018,2]
[394896106,1764091846087,-150.0,0.00018,2]
[394896108,1764091846096,-620062.5979139,0.00018,2]
[394896110,1764091846105,-231.47564842,0.00018,2]
[394896113,1764091846115,-190.16685419,0.00018,2]
[394896115,1764091846124,-151.0,0.00018,2]
[394896117,1764091846134,-361.0,0.00018028,2]
[394896119,1764091846143,-361.0,0.00018035,2]
[394896121,1764091846152,-3224.46466298,0.00018044,2]
[394896123,1764091846161,-333.91863386,0.00018066,2]
[394896125,1764091846170,-15899.8471355,0.00018073,2]
[394896127,1764091846180,-150.0,0.00018082,2]
[394896129,1764091846190,-500.0,0.00018082,2]
[394896131,1764091846199,-1000.0,0.00018082,2]
[394896132,1764091846209,-361.0,0.00018144,2]
[394896133,1764091846220,-1680.0,0.00018149,2]
[394896135,1764091846241,-361.0,0.00018164,2]
[394896137,1764091846254,-361.0,0.00018169,2]
[394896140,1764091846264,-361.0,0.0001817,2]
[394896142,1764091846274,-361.0,0.00018206,2]
[394896144,1764091846285,-150.0,0.00018219,2]
[394896145,1764091846295,-500.0,0.00018219,2]
[394896146,1764091846305,-361.0,0.00018247,2]
[394896147,1764091846315,-13504.15866098,0.00018301,2]
[394896148,1764091846329,-2765.67133995,0.00018301,2]
[394896149,1764091846341,-1202.21297461,0.00018301,2]
[394896150,1764091846358,-290.1,0.00018301,2]
[394896151,1764091846370,-663.7042298,0.00018301,2]
[394896152,1764091846617,-826.09384392,0.00018301,2]
[394896153,1764091846673,-869.05895074,0.00018301,2]
[394896154,1764091846684,-168.73859507,0.00018356,2]
[394896155,1764091846697,-250.0,0.00018356,2]
[394896156,1764091846707,-693.51245419,0.0001842,2]
[394896332,1764091982103,156.54,0.00019738,30]
[394896333,1764091994755,-300.0,0.00014986,2]
[394896334,1764091994801,-9100.01,0.00014987,2]
[394896335,1764091995016,-10000.01,0.00014987,2]
[394896336,1764092000889,-10000.01,0.00014987,2]
[394896337,1764092001026,-10000.01,0.00014987,2]
[394896338,1764092224117,-300.0,0.0001476,2]
[394896339,1764092224140,-11791.672524,0.00014761,2]
[394896340,1764092224160,-300.0,0.00014835,2]
[394896341,1764092224181,-300.0,0.00014911,2]
[394896342,1764092224202,-1122.76072873,0.00014911,2]
[394896343,1764092343561,-308.28311432,0.000149,2]
[394896344,1764092343586,-891.71688568,0.000149,2]
[394896353,1764092476968,379.19,0.00013699,2]
[394896354,1764092493651,1583.269,0.00014687,2]
[394896355,1764092493701,184.008,0.00014687,2]
[394896364,1764092921558,7853.543,0.0001463,2]
[394896365,1764092921583,10000.01,0.0001463,2]
[394896366,1764092921606,10000.01,0.0001463,2]
[394896367,1764092921628,10000.01,0.0001463,2]
[394896368,1764092921650,1184.947,0.0001463,2]
[394896369,1764092970135,2164.63043151,0.0001463,2]
[394896382,1764093032474,-210.0,0.00014779,2]
[394896383,1764093032484,-64.6787721,0.00014779,2]
[394896384,1764093032496,-136.0396358,0.00014779,2]
[394896386,1764093032510,-465.43994741,0.00014779,2]
[394896387,1764093032523,-15.98005259,0.00014779,2]
[394896389,1764093032533,-162.56118111,0.00014873,2]
[394896390,1764093032543,-95.30307166,0.00014873,2]
[394896391,1764093032694,-404.69692834,0.00014873,2]
[394896392,1764093032709,-612.88241603,0.00014885,2]
[394896393,1764093032720,-500.0,0.00014885,2]
[394896394,1764093032730,-222.50366167,0.00014885,2]
[394896395,1764093032740,-500.0,0.00014885,2]
[394896396,1764093032750,-500.0,0.00014885,2]
[394896397,1764093032760,-300.0,0.00014885,2]
[394896398,1764093032770,-300.0,0.00014885,2]
[394896399,1764093032780,-300.0,0.00014885,2]
[394896400,1764093032790,-1200.0,0.00014885,2]
[394896401,1764093032800,-392479.49814862,0.00014886,2]
[394896402,1764093032812,-14960.51308952,0.00014886,2]
[394896403,1764093032825,-66389.14821666,0.00014886,2]
[394896404,1764093032836,-127700.6533695,0.00014886,2]
[394896405,1764093032848,-4390.9644,0.00014886,2]
[394896406,1764093032865,-525.1228859,0.00014886,2]
[394896407,1764093032876,-1247.04778467,0.00014886,2]
[394896408,1764093032888,-110935.46731483,0.00014886,2]
[394896409,1764093032919,-202.69183706,0.00014885,2]
[394896410,1764093032930,-28526.72729533,0.00014886,2]
[394896418,1764093038238,-442.91644669,0.00014885,2]
[394896419,1764093038290,-57.08355331,0.00014885,2]
[394896420,1764093038301,-165.69518681,0.00014885,2]
[394896421,1764093038311,-244.96625988,0.00014885,2]
[394896422,1764093038450,-255.03374012,0.00014885,2]
[394896425,1764093038461,-221.73404738,0.00014885,2]
[394896427,1764093038471,-106.9610025,0.00014885,2]
[394896435,1764093040391,-393.0389975,0.00014885,2]
[394896436,1764093040401,-500.0,0.00014885,2]
[394896437,1764093040411,-500.0,0.00014885,2]
[394896438,1764093040421,-84.0610025,0.00014885,2]
[394896439,1764093040433,-415.9389975,0.00014885,2]
[394896440,1764093040443,-500.0,0.00014885,2]
[394896441,1764093040453,-500.0,0.00014885,2]
[394896442,1764093040463,-500.0,0.00014885,2]
[394896443,1764093040473,-500.0,0.00014885,2]
[394896444,1764093040483,-500.0,0.00014885,2]
[394896445,1764093040493,-500.0,0.00014885,2]
[394896446,1764093040503,-500.0,0.00014885,2]
[394896447,1764093040513,-500.0,0.00014885,2]
[394896448,1764093040523,-500.0,0.00014885,2]
[394896449,1764093040533,-360.8080923,0.00014885,2]
[394896450,1764093040628,-1.7e-07,0.00014885,2]
[394896451,1764093040810,-139.19190753,0.00014885,2]
[394896452,1764093040820,-500.0,0.00014885,2]
[394896453,1764093040830,-440.56771193,0.00014885,2]
[394896454,1764093042311,-59.43228807,0.00014885,2]
[394896455,1764093042338,-500.0,0.00014885,2]
[394896456,1764093042362,-500.0,0.00014885,2]
[394896457,1764093042386,-500.0,0.00014885,2]
[394896458,1764093042410,-500.0,0.00014885,2]
[394896459,1764093042434,-500.0,0.00014885,2]
[394896460,1764093042459,-500.0,0.00014885,2]
[394896461,1764093042484,-500.0,0.00014885,2]
[394896462,1764093042508,-500.0,0.00014885,2]
[394896463,1764093042535,-500.0,0.00014885,2]
[394896464,1764093042559,-500.0,0.00014885,2]
[394896465,1764093042583,-500.0,0.00014885,2]
[394896466,1764093042608,-500.0,0.00014885,2]
[394896467,1764093042632,-500.0,0.00014885,2]
[394896468,1764093042657,-500.0,0.00014885,2]
[394896469,1764093042682,-500.0,0.00014885,2]
[394896470,1764093042706,-500.0,0.00014885,2]
[394896471,1764093042732,-500.0,0.00014885,2]
[394896472,1764093042756,-500.0,0.00014885,2]
[394896473,1764093042779,-500.0,0.00014885,2]
[394896474,1764093042803,-500.0,0.00014885,2]
[394896475,1764093042827,-500.0,0.00014885,2]
[394896476,1764093042851,-189.69866645,0.00014885,2]
[394896487,1764093044012,-310.30133355,0.00014885,2]
[394896488,1764093044022,-500.0,0.00014885,2]
[394896489,1764093044032,-500.0,0.00014885,2]
[394896490,1764093044041,-500.0,0.00014885,2]
[394896491,1764093044051,-500.0,0.00014885,2]
[394896492,1764093044061,-500.0,0.00014885,2]
[394896493,1764093044070,-78.18036771,0.00014885,2]
[394896494,1764093044082,-421.81963229,0.00014885,2]
[394896495,1764093044091,-500.0,0.00014885,2]
[394896496,1764093044101,-500.0,0.00014885,2]
[394896497,1764093044111,-500.0,0.00014885,2]
[394896498,1764093044121,-500.0,0.00014885,2]
[394896499,1764093044131,-500.0,0.00014885,2]
[394896500,1764093044141,-500.0,0.00014885,2]
[394896501,1764093044151,-500.0,0.00014885,2]
[394896502,1764093044161,-500.0,0.00014885,2]
[394896503,1764093044171,-500.0,0.00014885,2]
[394896504,1764093044181,-500.0,0.00014885,2]
[394896505,1764093044192,-500.0,0.00014885,2]
[394896506,1764093044201,-500.0,0.00014885,2]
[394896507,1764093044211,-11220.23622965,0.00014886,2]
[394896508,1764093044223,-1624.62126532,0.00014886,2]
[394896509,1764093044233,-1200.0,0.00014886,2]
[394896510,1764093044243,-1000.0,0.00014887,2]
[394896511,1764093044253,-3892.5,0.00014887,2]
[394896512,1764093044268,-11534.2812,0.00014887,2]
[394896513,1764093044277,-2500.0,0.00014887,2]
[394896514,1764093044287,-500.0,0.00014887,2]
[394896515,1764093044297,-500.0,0.00014887,2]
[394896516,1764093044309,-500.0,0.00014887,2]
[394896517,1764093044319,-500.0,0.00014887,2]
[394896518,1764093044329,-500.0,0.00014887,2]
[394896519,1764093044338,-500.0,0.00014887,2]
[394896520,1764093044349,-500.0,0.00014887,2]
[394896521,1764093044359,-500.0,0.00014887,2]
[394896522,1764093044369,-500.0,0.00014887,2]
[394896523,1764093044379,-500.0,0.00014887,2]
[394896524,1764093044388,-500.0,0.00014887,2]
[394896525,1764093044398,-500.0,0.00014887,2]
[394896526,1764093044407,-500.0,0.00014887,2]
[394896527,1764093044417,-500.0,0.00014887,2]
[394896528,1764093044426,-500.0,0.00014887,2]
[394896529,1764093044436,-500.0,0.00014887,2]
[394896530,1764093044446,-192.37994214,0.00014887,2]
[394896531,1764093044456,-325.52,0.00014887,2]
[394896532,1764093044466,-999.0,0.00014892,3]
[394896533,1764093044476,-1000.0,0.00014899,2]
[394896534,1764093044487,-11811.06729017,0.000149,2]
[394896535,1764093044697,-1466.57421676,0.000149,2]
[394896536,1764093044707,-13697.02995376,0.000149,2]
[394896537,1764093044716,-184.2569763,0.000149,2]
[394896538,1764093044726,-277.45480287,0.000149,2]
[394896539,1764093044736,-500.22396075,0.00014973,2]
[394896540,1764093044746,-500.0,0.00014973,2]
[394896541,1764093044755,-500.0,0.00014973,2]
[394896542,1764093044765,-500.0,0.00014973,2]
[394896543,1764093044774,-500.0,0.00014986,2]
[394896544,1764093044784,-500.0,0.00014986,2]
[394896545,1764093044793,-500.0,0.00014986,2]
[394896546,1764093044803,-500.0,0.00014986,2]
[394896547,1764093044812,-500.0,0.00014986,2]
[394896548,1764093044821,-500.0,0.00014986,2]
[394896549,1764093044830,-500.0,0.00014986,2]
[394896550,1764093044840,-500.0,0.00014986,2]
[394896551,1764093044850,-500.0,0.00014986,2]
[394896552,1764093044859,-500.0,0.00014986,2]
[394896553,1764093044869,-500.0,0.00014986,2]
[394896554,1764093044879,-500.0,0.00014986,2]
[394896555,1764093044888,-500.0,0.00014986,2]
[394896556,1764093044897,-500.0,0.00014986,2]
[394896557,1764093044907,-563.62196302,0.00014986,2]
[394896558,1764093044916,-284.33901,0.00015,2]
[394896559,1764093044926,-325.52,0.00015161,2]
[394896560,1764093044935,-500.0,0.00015209,2]
[394896561,1764093044946,-3018.3348,0.0001521,2]
[394896562,1764093044956,-1000.0,0.00015421,2]
[394896563,1764093044965,-325.52476848,0.00015435,2]
[394896564,1764093044975,-1000.0,0.00015521,2]
[394896565,1764093044985,-1000.0,0.00015521,2]
[394896566,1764093044995,-7766.92175904,0.00015587,2]
[394896567,1764093045004,-1600.0,0.00015599,2]
[394896568,1764093045014,-150.0,0.00015637,2]
[394896569,1764093045023,-166.66,0.00015717,2]
[394896570,1764093045033,-250.0,0.0001576,2]
[394896571,1764093045043,-1500.0,0.00015968,2]
[394896572,1764093045052,-300.0,0.00015974,2]
[394896573,1764093045062,-1000.0,0.00016015,2]
[394896574,1764093045071,-166.66,0.00016047,2]
[394896575,1764093045081,-1500.0,0.00016068,2]
[394896576,1764093045090,-1500.0,0.00016068,2]
[394896577,1764093045099,-1000.0,0.00016135,2]
[394896578,1764093045110,-250.0,0.00016257,2]
[394896579,1764093045119,-420.0,0.00016292,2]
[394896580,1764093045129,-420.0,0.00016292,2]
[394896581,1764093045139,-420.0,0.00016293,2]
[394896582,1764093045148,-1680.0,0.00016373,2]
[394896583,1764093045158,-195.0,0.00016375,2]
[394896584,1764093045167,-166.66,0.00016378,2]
[394896585,1764093045176,-8766.16,0.00016438,2]
[394896586,1764093045186,-2000.0,0.00016516,2]
[394896587,1764093045195,-2000.0,0.00016616,2]
[394896588,1764093045204,-2000.0,0.00016616,2]
[394896589,1764093045213,-166.66,0.00016709,2]
[394896590,1764093045223,-380.14,0.00016895,2]
[394896591,1764093045233,-299.99,0.00016922,4]
[394896592,1764093045242,-1190.18,0.00016922,2]
[394896593,1764093045252,-1525.43,0.00016922,2]
[394896594,1764093045266,-9999.99,0.00016922,2]
[394896595,1764093045276,-999.99,0.00016922,2]
[394896596,1764093045286,-150.99,0.00016922,2]
[394896597,1764093045296,-9999.99,0.00016922,2]
[394896598,1764093045306,-6555.17,0.00016922,2]
[394896599,1764093045316,-150.99,0.00016922,2]
[394896600,1764093045325,-329.81,0.00016945,2]
[394896601,1764093045335,-2000.0,0.00017,2]
[394896602,1764093045345,-166.66,0.0001704,2]
[394896603,1764093045354,-500.0,0.0001712,2]
[394896604,1764093045364,-500.0,0.0001712,2]
[394896605,1764093045373,-578.20924308,0.0001712,2]
[394896606,1764093045383,-363.79377277,0.0001712,2]
[394896607,1764093045392,-500.0,0.0001712,2]
[394896608,1764093045402,-500.0,0.0001712,2]
[394896609,1764093045412,-500.0,0.0001712,2]
[394896610,1764093045421,-500.0,0.0001712,2]
[394896611,1764093045431,-500.0,0.0001712,2]
[394896612,1764093045441,-500.0,0.0001712,2]
[394896613,1764093045450,-500.0,0.0001712,2]
[394896614,1764093045460,-500.0,0.0001712,2]
[394896615,1764093045469,-420.53194006,0.0001712,2]
[394896616,1764093045479,-500.0,0.0001712,2]
[394896617,1764093045489,-500.0,0.0001712,2]
[394896618,1764093045498,-500.0,0.0001712,2]
[394896619,1764093045508,-500.0,0.0001712,2]
[394896620,1764093045517,-500.0,0.0001712,2]
[394896621,1764093045527,-500.0,0.0001712,2]
[394896622,1764093045536,-500.0,0.0001712,2]
[394896623,1764093045545,-500.0,0.0001712,2]
[394896624,1764093045555,-500.0,0.0001712,2]
[394896625,1764093045564,-500.0,0.0001712,2]
[394896626,1764093045573,-500.0,0.0001712,2]
[394896627,1764093045583,-2500.0,0.00017164,2]
[394896628,1764093045592,-2500.0,0.00017164,2]
[394896629,1764093045602,-166.66,0.00017371,2]
[394896630,1764093045612,-1600.0,0.00017549,2]
[394896631,1764093045623,-2223.55195283,0.00017712,2]
[394896632,1764093045632,-3000.0,0.00017712,2]
[394896633,1764093045642,-1007.08504452,0.00017746,2]
[394896634,1764093045651,-587.0,0.00017833,2]
[394896635,1764093045660,-587.0,0.00017833,2]
[394896636,1764093045670,-587.0,0.00017834,2]
[394896637,1764093045680,-984.39500213,0.00017836,2]
[394896639,1764093045690,-500.0,0.00017845,2]
[394896641,1764093045699,-500.0,0.00017845,2]
[394896643,1764093045709,-500.0,0.00017845,2]
[394896645,1764093045718,-2149.0,0.00017846,2]
[394896646,1764093045728,-504323.4680814,0.00017846,2]
[394896648,1764093045738,-11103.8913086,0.00017846,2]
[394896650,1764093045748,-151.0,0.00017846,2]
[394896652,1764093045757,-500.0,0.00017873,2]
[394896654,1764093045767,-13277.64150685,0.00017873,2]
[394896655,1764093045776,-13697.02995372,0.00017873,2]
[394896657,1764093045786,-277.45480285,0.00017896,2]
[394896659,1764093045795,-427.01065334,0.00017902,2]
[394896661,1764093045805,-2351.0,0.00018011,2]
[394896662,1764093045814,-14238.6059685,0.00018013,2]
[394896663,1764093045823,-200.0,0.00018064,2]
[394896664,1764093045833,-1000.0,0.00018082,2]
[394896665,1764093045843,-1000.0,0.00018152,2]
[394896666,1764093045853,-222.57194988,0.00018205,2]
[394896667,1764093045863,-3500.0,0.0001826,2]
[394896668,1764093045873,-1340.09635773,0.00018267,2]
[394896669,1764093045884,-168.0,0.00018275,2]
[394896670,1764093045894,-168.0,0.00018343,2]
[394896671,1764093045904,-150.0,0.00018356,2]
[394896672,1764093045914,-150.0,0.00018356,2]
[394896673,1764093045923,-150.0,0.00018356,2]
[394896674,1764093045934,-500.0,0.00018356,2]
[394896675,1764093045944,-500.0,0.00018356,2]
[394896676,1764093045953,-500.0,0.00018356,2]
[394896677,1764093045963,-152.71068168,0.00018356,2]
[394896678,1764093045973,-500.0,0.00018356,2]
[394896679,1764093045983,-630.0,0.00018356,2]
[394896680,1764093045993,-150.0,0.00018356,2]
[394896681,1764093046003,-150.0,0.00018356,2]
[394896682,1764093046012,-500.0,0.00018356,2]
[394896683,1764093046022,-150.0,0.00018356,2]
[394896684,1764093046031,-156.18303639,0.00018356,2]
[394896685,1764093046039,-500.0,0.00018356,2]
[394896686,1764093046049,-500.0,0.00018356,2]
[394896687,1764093046059,-500.0,0.00018356,2]
[394896688,1764093046068,-500.0,0.00018356,2]
[394896689,1764093046079,-150.0,0.00018356,2]
[394896690,1764093046089,-500.0,0.00018356,2]
[394896691,1764093046098,-500.0,0.00018356,2]
[394896692,1764093046108,-150.0,0.00018356,2]